Workbook

Sheet Flowcalc
B1: invullen | C1: railtype | D1: 6200 | E1: =VLOOKUP(D1,bron!A2:D40,2,0) -> breedspoor | J1: systeem | K1: =D1 -> 6200 | L1: =systeemlengte -> 350 | M1: cm
B2: invullen | C2: systeemlengte | D2: 350 | E2: cm, incl poullies | J2: typering | K2: =VLOOKUP(TRUE,$A$11:$N$55,2,0) -> 5600 midd.sl., geen overlap, 2 rechte beugels | P2: Halbe Falten tiefe (cm) | Q2: gevonden: | R2: =INDEX(Q4:R5,MATCH(D6,P4:P5),MATCH(D5,Q3:R3)) -> 6
B3: kies | C3: pakket | D3: 1, Links | J3: pakket | K3: =IF(D3="","geen opgave",D3) -> 1, Links | L3: bediening | M3: =IF(D4="","geen opgave",D4) -> geen opgave | P3: glijderafst | Q3: 6 | R3: 8
B4: kies | C4: bedieningszijde | J4: ="aantal "&VLOOKUP(D1,bron!A2:D40,3,0) -> aantal 4014-12 | K4: =VLOOKUP(TRUE,$A$11:$N$55,4,0) -> 46 | O4: plooitoesl | P4: 2 | Q4: 4.5 | R4: 6
B5: kies | C5: glijderafstand 6 of 8 | D5: 8 | E5: cm | J5: ="aantal "&E9 -> aantal 2021-FL | K5: =VLOOKUP(TRUE,$A$11:$N$55,5,0) -> 52 | P5: 2.8 | Q5: 7 | R5: 9
B6: kies | C6: plooitoeslag | D6: 2 | J6: =F9 -> 4074-10FL | K6: =VLOOKUP(TRUE,$A$11:$N$55,6,0) -> 2 | M6: stuks
J7: =VLOOKUP(D5,bron!F2:I3,4,0) -> 4014-22-080-TR | K7: =VLOOKUP(TRUE,$A$11:$N$55,7,0) -> 3.8 | L7: =IF(VLOOKUP(TRUE,$A$11:$N$55,8,0)=0,"","en "&VLOOKUP(TRUE,$A$11:$N$55,8,0)) -> en 3,8 | M7: m
J8: eindstop(s) | K8: =IF(VLOOKUP(TRUE,$A$11:$N$55,11,0)="zit in voorloper-set","zit in voorloper-set",VLOOKUP(TRUE,$A$11:$N$55,11,0)&" x "&VLOOKUP(D1,bron!A2:D30,4,0)) -> zit in voorloper-set
D9: 2014-12/4014-12 | E9: 2021-FL | F9: 4074-10FL | G9: 4014-22-060-TR/4014-22-080-TR | J9: voorloper(s) | K9: =VLOOKUP(TRUE,$A$11:$N$55,13,0) -> 2 x 5675-3010 | L9: =IF(VLOOKUP(TRUE,$A$11:$N$55,14,0)=0,"","+ "&VLOOKUP(TRUE,$A$11:$N$55,14,0)) ->  | N9: v 1.5
A10: Handbediend | D10: glijders | E10: haak | F10: voorloophaak | G10: tapelengte [m] | I10: min.stofbreedte [m] | K10: eindstops | M10: voorlopersets
A11: FALSE | B11: HB enkelpakket, geen overlap | D11: =IF(MOD((CEILING(systeemlengte/glijderafstand,1)+1),2)=0,CEILING(systeemlengte/glijderafstand,1)+1,CEILING(systeemlengte/glijderafstand,1)+2) +N("als afgeronde aantal tussenafstanden+1 deelbaar is door 2, dan zo laten anders er 2 glijders bij tellen") -> 46 | E11: =D11+F11+N("voor elke voorloperhaak 1 extra haak rekenen") -> 48 | F11: 2 | G11: =((D11-1)*CEILING(glijderafstand*$D$6,1)+2*$R$2)/100+N("aantal glijders-1 maal de plooien en dan nog + 2x de halve 'faltentiefe'") -> 7.32 | I11: =G11-0.02 -> 7.3 | K11: 2 | M11: -
D12: pin van 1e glijder komt onder de eindstop | G12: hiervan nog 1cm omslaan aan beide uiteinden | I12: is exclusief stofbreedte voor zijzoom
A13: FALSE | B13: HB middensluitend, geen overlap | D13: =IF(MOD((CEILING(0.5*systeemlengte/glijderafstand,1)+1),2)=0,2*(CEILING(0.5*systeemlengte/glijderafstand,1)+1),2*(CEILING(0.5*systeemlengte/glijderafstand,1)+2)) -> 48 | E13: =D13+F13 -> 52 | F13: 4 | G13: =(((D13/2)-1)*CEILING(glijderafstand*$D$6,1)+2*R2)/100+N("halve aantal glijders-1 maal de plooien en dan nog + 2x de halve 'faltentiefe'") -> 3.8 | H13: =(((D13/2)-1)*CEILING(glijderafstand*$D$6,1)+2*R2)/100+N("halve aantal glijders-1 maal de plooien en dan nog + 2x de halve 'faltentiefe'") -> 3.8 | I13: =G13-0.02 -> 3.78 | J13: =H13-0.02 -> 3.78 | K13: 2 | M13: -
D14: pin van 1e glijder komt onder de eindstop | G14: hiervan nog 1cm omslaan aan beide uiteinden | H14: hiervan nog 1cm omslaan aan beide uiteinden | I14: is exclusief stof voor zijzoom | J14: is exclusief stofbreedte voor zijzoom
A15: FALSE | B15: HB middensl., geen overlap, 2 beugels | D15: =IF(MOD((CEILING(0.5*systeemlengte/glijderafstand,1)+1),2)=0,2*(CEILING(0.5*systeemlengte/glijderafstand,1)+1),2*(CEILING(0.5*systeemlengte/glijderafstand,1)+2)) -> 48 | E15: =D15+F15 -> 52 | F15: 4 | G15: =(((D15/2)-1)*CEILING(glijderafstand*$D$6,1)+2*R4)/100+N("halve aantal glijders-1 maal de plooien en dan nog + 2x de halve 'faltentiefe'") -> 3.8 | H15: =(((D15/2)-1)*CEILING(glijderafstand*$D$6,1)+2*R4)/100+N("halve aantal glijders-1 maal de plooien en dan nog + 2x de halve 'faltentiefe'") -> 3.8 | I15: =G15-0.02 -> 3.78 | J15: =H15-0.02 -> 3.78 | K15: 2 | M15: 2 x 4075-1000
D16: pin van 1e glijder komt onder de eindstop | G16: hiervan nog 1cm omslaan aan beide uiteinden | H16: hiervan nog 1cm omslaan aan beide uiteinden | I16: is exclusief stofbreedte voor zijzoom | J16: is exclusief stofbreedte voor zijzoom
A17: FALSE | B17: HB enkelpakket, rechte beugel | D17: =D11 -> 46 | E17: =E11 -> 48 | F17: 2 | G17: =G11 -> 7.32 | I17: =I11 -> 7.3 | K17: 2 | M17: 4075-1000
C18: 2075-FL of 4074-FL, bijvoorbeeld voor trekstang | D18: pin 1e gijder in eindstop, pin laatste in beugel | E18: verandert niet tov 'geen overlap' | G18: hiervan nog 1cm omslaan aan beide uiteinden | I18: is exclusief stofbreedte voor zijzoom
A19: FALSE | B19: HB middensluitend, overlap, 1 beugel | D19: =D13 -> 48 | E19: =E13+1 -> 53 | F19: 3 | G19: =G13+0.1+N("waarde van 10cm is de extra lengte '10 pockets' binnendoor de Swingflow beugel tov 4074-10FL") -> 3.9 | H19: =H13 -> 3.8 | I19: =I13+0.1+N("waarde van 10cm is de extra lengte '10 pockets' binnendoor de Swingflow beugel tov 4074-10FL") -> 3.88 | J19: =J13 -> 3.78 | K19: 2 | M19: 4074-30FL
C20: 2074-FL en 2075-FL 4074-FL en 4075-FL | D20: palletje 1e en laatste glijder komen onder de eindstops | E20: 1 extra in overlapbeugel tov 4074-10FL | G20: pakket met overlap, hiervan nog 1cm omslaan aan beide uiteinden | H20: hiervan nog 1cm omslaan aan beide uiteinden | I20: pakket met overlap, is exclusief stofbreedte voor zijzoom | J20: is exclusief stofbreedte voor zijzoom
A21: FALSE | B21: HB middensl., overlap, 2 beugels | D21: =D13 -> 48 | E21: =E19 -> 53 | F21: 3 | G21: =G19 -> 3.9 | H21: =H19 -> 3.8 | I21: =I19 -> 3.88 | J21: =J19 -> 3.78 | K21: 2 | M21: 4074-30FL | N21: 4075-1000
D22: palletje 1e en laatste glijder komen onder de eindstops | G22: pakket met overlap, hiervan nog 1cm omslaan aan beide uiteinden | H22: hiervan nog 1cm omslaan aan beide uiteinden | I22: pakket met overlap, is exclusief stofbreedte voor zijzoom | J22: is exclusief stofbreedte voor zijzoom
A24: koord 5100 en 5300 | D24: glijders | E24: haak | F24: voorloophaak | G24: tapelengte [m] | I24: min.stofbreedte [m] | K24: eindstops | M24: voorlopersets
A25: FALSE | B25: 5100 enkelpakket, overlapbeugel | D25: =IF(MOD((CEILING((systeemlengte-8-6.5)/glijderafstand,1)+1),2)=0,CEILING((systeemlengte-8-6.5)/glijderafstand,1),CEILING((systeemlengte-8-6.5)/glijderafstand,1)+1)+N("8cm aftrek voor bereik Swingbeugel en 6,5 (ervaringswaarde) voor poulli, glijders moet hier oneven aantal zijn") -> 43 | E25: =D25+4 -> 47 | F25: 1 | G25: =((D35*CEILING(glijderafstand*$D$6,1)+0.5*R2+10)/100)+N("aantal glijders-1 maal de plooien +( 1 plooi bij motor/koordpoulli + halbe faltentiefe (Gerster alg opm.))) +10cm stof voor in onze voorloper") -> 7.01 | I25: =G25-0.02 -> 6.99 | K25: zit in voorloper-set | L25: 5100 | M25: 5174-30FL
E26: haak 1 en 2 bij poully, laatste 3 aan overlapbeugel | G26: hiervan nog 1cm omslaan aan beide uiteinden | I26: is exclusief stofbreedte voor zijzoom | K26: houdt de 1e glijder bij de poully op de plaats
A27: FALSE | B27: 5100 midensl., overlap, 2 beugels | D27: =D19-2 -> 46 | E27: =E19 -> 53 | F27: 3 | G27: =G19 -> 3.9 | H27: =H19 -> 3.8 | I27: =I19 -> 3.88 | J27: =J19 -> 3.78 | K27: zit in voorloper-set | L27: 5100 | M27: 5174-30FL | N27: 5175-3010
G28: pakket met overlap | I28: pakket met overlap | K28: houdt de 1e glijder bij de poully op de plaats
A29: FALSE | B29: 5300 enkelpakket, overlapbeugel | D29: =IF(MOD((CEILING((systeemlengte-8-6.5)/glijderafstand,1)+1),2)=0,CEILING((systeemlengte-8-6.5)/glijderafstand,1),CEILING((systeemlengte-8-6.5)/glijderafstand,1)+1)+N("8cm aftrek voor bereik Swingbeugel en 6,5 (ervaringswaarde) voor poulli, glijders moet hier oneven aantal zijn") -> 43 | E29: =D29+4 -> 47 | F29: 1 | G29: =((D35*CEILING(glijderafstand*$D$6,1)+0.5*R2+10)/100)+N("aantal glijders-1 maal de plooien +( 1 plooi bij motor/koordpoulli + halbe faltentiefe (Gerster alg opm.))) +10cm stof voor in onze voorloper") -> 7.01 | I29: =G29-0.02 -> 6.99 | K29: zit in voorloper-set | L29: 5300 | M29: 5174-30FL
K30: houdt de 1e glijder bij de poully op de plaats
A31: FALSE | B31: 5100 midensl., overlap, 2 beugels | D31: =D19-2 -> 46 | E31: =E19 -> 53 | F31: 3 | G31: =G19 -> 3.9 | H31: =H19 -> 3.8 | I31: =I19 -> 3.88 | J31: 3.78 | K31: zit in voorloper-set | L31: 5300 | M31: 5174-30FL | N31: 5175-3010
G32: pakket met overlap | I32: pakket met overlap | K32: houdt de 1e glijder bij de poully op de plaats
A34: koord 5600 | D34: glijders | E34: haak | F34: voorloophaak | G34: tapelengte [m] | I34: min.stofbreedte [m] | K34: eindstops | M34: voorlopersets
A35: FALSE | B35: 5600 enkelpakket, overlapbeugel | D35: =IF(MOD((CEILING((systeemlengte-8-6.5)/glijderafstand,1)+1),2)=0,CEILING((systeemlengte-8-6.5)/glijderafstand,1),CEILING((systeemlengte-8-6.5)/glijderafstand,1)+1)+N("8cm aftrek voor bereik Swingbeugel en 6,5 (ervaringswaarde) voor poulli, glijders moet hier oneven aantal zijn") -> 43 | E35: =D35+4 -> 47 | F35: 0 | G35: =((D35*CEILING(glijderafstand*$D$6,1)+0.5*R2+10)/100)+N("aantal glijders-1 maal de plooien +( 1 plooi bij motor/koordpoulli + halbe faltentiefe (Gerster alg opm.))) +10cm stof voor in onze voorloper") -> 7.01 | I35: =G35-0.02 -> 6.99 | K35: zit in voorloper-set | L35: 5600: | M35: 5674-30FL
E36: haak 1 en 2 aan poully, laatste 3 aan overlapbeugel | G36: hiervan nog 1cm omslaan aan beide uiteinden | I36: is exclusief stofbreedte voor zijzoom | K36: houdt de 1e glijder bij de poully op de plaats
A37: TRUE | B37: 5600 midd.sl., geen overlap, 2 rechte beugels | D37: =D13-2 -> 46 | E37: =E13 -> 52 | F37: 2 | G37: =G13 -> 3.8 | H37: =H13 -> 3.8 | I37: =I13 -> 3.78 | J37: =J13 -> 3.78 | K37: zit in voorloper-set | L37: 5600: | M37: 2 x 5675-3010
D38: bij beide poullies 1 glijder minder, midden: palletjes nodig | K38: houden de 1e glijder bij de poullies op de plaats
A39: FALSE | B39: 5600 middensluitend, overlap 2 beugels | D39: =D19-2 -> 46 | E39: =E19 -> 53 | F39: 1 | G39: =G19 -> 3.9 | H39: =H19 -> 3.8 | I39: =I19 -> 3.88 | J39: =J19 -> 3.78 | K39: zit in voorloper-set | L39: 5600: | M39: 5674-30FL | N39: 5675-3010
C40: met 'Swing'beugel | D40: bij beide poullies 1 glijder minder, midden: palletjes nodig | G40: pakket met overlap | I40: pakket met overlap | K40: houden de 1e glijder bij de poullies op de plaats
A42: elektr.6200 | D42: glijders | E42: haak | F42: voorloophaak | G42: tapelengte [m] | I42: min.stofbreedte [m] | K42: eindstops | M42: voorlopersets
A43: FALSE | B43: EB enkelpakket, overlapbeugel | D43: =IF(MOD((CEILING((systeemlengte-8-6.5)/glijderafstand,1)+1),2)=0,CEILING((systeemlengte-8-6.5)/glijderafstand,1),CEILING((systeemlengte-8-6.5)/glijderafstand,1)+1)+N("8cm aftrek voor bereik Swingbeugel en 6,5 (ervaringswaarde) voor poulli, glijders moet hier oneven aantal zijn") -> 43 | E43: =D43+4 -> 47 | F43: 0 | G43: =((D43*CEILING(glijderafstand*$D$6,1)+0.5*R2+10)/100)+N("aantal glijders-1 maal de plooien +( 1 plooi bij motor/koordpoulli + halbe faltentiefe (Gerster alg opm.))) +10cm stof voor in onze voorloper") -> 7.01 | I43: =G43-0.02 -> 6.99 | K43: zit in voorloper-set | L43: 6200: | M43: 6274-30FL
E44: haak 1 en 2 aan poully, laatste 3 aan 'swing' beugel' | G44: hiervan nog 1cm omslaan aan beide uiteinden | I44: is exclusief stofbreedte voor zijzoom | K44: houdt de 1e glijder bij de poully op de plaats
A45: FALSE | B45: EB, geen overlap, 2 rechte beugels | D45: =D13-2 -> 46 | E45: =E13 -> 52 | F45: 2 | G45: =G13 -> 3.8 | H45: =H13 -> 3.8 | I45: =I13 -> 3.78 | J45: =J13 -> 3.78 | K45: zit in voorloper-set | L45: 6200: | M45: 2 x 6275-3010
D46: bij beide poullies 1 glijder minder, midden: palletjes nodig | K46: houden de 1e glijder bij de poullies op de plaats
A47: FALSE | B47: EB middensluitend, overlap 2 beugels | D47: =D19-2 -> 46 | E47: =E19 -> 53 | F47: 1 | G47: =G19 -> 3.9 | H47: =H19 -> 3.8 | I47: 3.88 | J47: 3.78 | K47: zit in voorloper-set | L47: 6200: | M47: 6274-30FL | N47: 6275-3010
C48: met 'Swing'beugel | D48: bij beide poullies 1 glijder minder, midden: palletjes nodig | G48: pakket met overlap | I48: pakket met overlap | K48: houden de 1e glijder bij de poullies op de plaats
A50: elektr.6200 met compacte poully | D50: glijders | E50: haak | F50: voorloophaak | G50: tapelengte [m] | I50: min.stofbreedte [m] | K50: eindstops | M50: voorloperset
A51: FALSE | B51: EB enkelpakket | C51: met korte beugel | D51: =IF(MOD((CEILING((systeemlengte-6.5)/glijderafstand,1)),2)=0,CEILING((systeemlengte-6.5)/glijderafstand,1)+1,CEILING((systeemlengte-6.5)/glijderafstand,1)+2)+N(" als afgeronde aantal tussenafstanden deelbaar is door 2 (aantal glijders is dus eentje meer), dan zo laten, anders er 2 glijders bij tellen; en ook: aftrek 6,5 cm (ervaringswaarde) voor poulli, glijders moet hier een even aantal zijn") -> 45 | E51: =D51+3 -> 48 | F51: 1 | G51: =((D43*CEILING(glijderafstand*$D$6,1)+2*0.5*R2+10)/100)+N("aantal glijders maal de plooien + bij beide stof-einden de halbe faltentiefe (Gerster alg opm.) ") -> 7.04 | I51: =G51-0.02 -> 7.02 | K51: zit in voorloper-set | L51: 6200: | M51: 6275-3010
K52: houdt de 1e glijder bij de poully op de plaats

Sheet rekenblad m plooidiepte (hidden)
A2: invullen | B2: systeemlengte | C2: 169 | D2: cm | F2: geeft | G2: aantal glijders | H2: =IF(MOD(CEILING($C$2/$C$3,1),2)=0,CEILING($C$2/$C$3,1),CEILING($C$2/$C$3,1)+1) -> 30 | I2: stuks
A3: kies | B3: glijderafstand | C3: 6 | D3: cm | F3: geeft | G3: stofbreedte | H3: =$H2*CEILING($C$3*$C$4,1) -> 360 | I3: cm | J3: is exclusief stof voor zoom
A4: kies | B4: plooitoeslag | C4: 2 | F4: geeft | G4: tapelengte | H4: =H3+2 -> 362 | I4: cm | J4: is stofbreedte+ 2cm
A5: optie | B5: plooidiepte max | D5: cm | G5: plooidiepte | H5: ...
H10: 2014-12
A11: let op: | H11: 4014-12 | I11: 2021-FL | J11: 4074-10FL
A12: bij gordijn open: is de plooi het diepste | F12: Handbediend | H12: glijders | I12: haak | J12: voorloophaak | K12: uitzoeken breedspoor: 1e haakje Flow aan eindstop 4001? of dan 4001-M ivm dikte materiaal?
F13: (geen overlap) | G13: enkelpakket | H13: =IF(MOD(CEILING($C$2/$C$3,1),2)=0,CEILING($C$2/$C$3,1),CEILING($C$2/$C$3,1)+1) -> 30 | I13: =H13+J13 -> 32 | J13: 2 | K13: Oplossing anders als er een 2021-FL aan de eindstop komt
G14: middensluitend | H14: =2*H13 -> 60 | I14: =H14+J14 -> 64 | J14: 4
F16: koordbediend | H16: glijders | I16: haak | J16: voorloophaak | L16: met 4074-1000
F17: 5100 | G17: enkelpakket | H17: =IF(MOD(CEILING($C$2/$C$3,1),2)=0,CEILING($C$2/$C$3,1),CEILING($C$2/$C$3,1)+1) -> 30 | I17: =H17+J17 -> 32 | J17: 2
F18: 5300 | G18: middensluitend
F20: koordbediend | H20: glijders | I20: haak | J20: voorloophaak | L20: met 5674-30FL
F21: 5600 | G21: enkelpakket | H21: =IF(MOD(CEILING($C$2/$C$3,1),2)=0,CEILING($C$2/$C$3,1),CEILING($C$2/$C$3,1)+1) -> 30 | I21: =H21+J21 -> 32 | J21: 2
G22: middensluitend
F24: elektr. bediend | H24: glijders | I24: haak | J24: voorloophaak | L24: met 6274-30FL
F25: 6200 | G25: enkelpakket | H25: =IF(MOD(CEILING($C$2/$C$3,1),2)=0,CEILING($C$2/$C$3,1),CEILING($C$2/$C$3,1)+1) -> 30 | I25: =H25+J25 -> 32 | J25: 2
G26: middensluitend
B30: plooidiepte gestuurd is een wens, om passend te krijgen tov 2 paralelle gordijnen
D35: gewenste plooidiepte | E35: 3
D36: glijderafstand | E36: =C3 -> 6
D38: omtrek | F38: =PI()*SQRT(2*(E35^2+(0.5*E36)^2)) -> 18.84955592
D39: halve omtrek | F39: =0.5*F38 -> 9.424777961
D40: plooitoeslag | E40: =F39/E36 -> 1.570796327
D41: in% | E41: =ROUND((E40)*100,0) -> 157

Sheet bron
F1: glijderafstanden | G1: plooitoeslag | H1: idem in perc. | I1: band | J1: systeem | K1: 5600 | L1: 350 | M1: cm
A2: 2100 | B2: smalspoor | C2: 2014-12 | D2: 2001 | F2: 6 | G2: 2 | H2: 200 | I2: 4014-22-060-TR | J2: typering | K2: 5600 midd.sl., geen overlap, 2 rechte beugels
A3: 2102 | B3: smalspoor | C3: 2014-12 | D3: 2001 | F3: 8 | G3: 2.5 | H3: 250 | I3: 4014-22-080-TR | J3: pakket | K3: 1, Rechts | L3: bediening | M3: Links
A4: 2200 | B4: smalspoor | C4: 2014-12 | D4: 2001 | G4: 2.8 | H4: 280 | J4: aantal 4014-12 | K4: 46
A5: 2400 | B5: smalspoor | C5: 2014-12 | D5: 2001 | J5: aantal 2021-FL | K5: 52
A6: 2600 | B6: smalspoor | C6: 2014-12 | D6: 2001 | J6: 4074-10FL | K6: 2 | M6: stuks
A7: 2900 | B7: smalspoor | C7: 2014-12 | D7: 2001 | F7: 1, Links | G7: Links | J7: 4014-22-080-TR | K7: 3.8 | L7: en 3,8 | M7: m
A8: 2901 | B8: smalspoor | C8: 2014-12 | D8: 2001 | F8: 1, Rechts | G8: Rechts | J8: eindstop(s) | K8: zit in voorloper-set
A9: 2904 | B9: smalspoor | C9: 2014-12 | D9: 2001 | F9: 2, Midd.sluitend | J9: voorloper(s) | K9: 2 x 5675-3010
A10: 2905 | B10: smalspoor | C10: 2014-12 | D10: 2001
A11: 2906 | B11: smalspoor | C11: 2014-12 | D11: 2001
A12: 4100 | B12: breedspoor | C12: 4014-12 | D12: 4001
A13: 4200 | B13: breedspoor | C13: 4014-12 | D13: 4001
A14: 4400 | B14: breedspoor | C14: 4014-12 | D14: 4001
A15: 4520 | B15: breedspoor | C15: 4014-12 | D15: 4001 | K15: http://www.wisfaq.nl/pagina.asp?nummer=1852
A16: 4530 | B16: breedspoor | C16: 4014-12 | D16: 4001 | K16: benadering
A17: 4540 | B17: breedspoor | C17: 4014-12 | D17: 4001 | K17: golf/plooi is halve ellips
A18: 4550 | B18: breedspoor | C18: 4014-12 | D18: 4001
A19: 4600 | B19: breedspoor | C19: 4014-12 | D19: 4001
A20: 4700 | B20: breedspoor | C20: 4014-12 | D20: 4001 | L20: gewenste plooidiepte | M20: 3
A21: 4701 | B21: breedspoor | C21: 4014-12 | D21: 4001 | G21: Falten tiefe (cm) | L21: glijderafstand | M21: ='rekenblad m plooidiepte'!C3 -> 6
A22: 4702 | B22: breedspoor | C22: 4014-12 | D22: 4001 | H22: 6 | I22: 8
A23: 4703 | B23: breedspoor | C23: 4014-12 | D23: 4001 | G23: 200 | H23: 4.5 | I23: 6 | L23: omtrek | N23: =PI()*SQRT(2*(M20^2+(0.5*M21)^2)) -> 18.84955592
A24: 4705 | B24: breedspoor | C24: 4014-12 | D24: 4001 | G24: 250 | H24: 6 | I24: 8 | L24: halve omtrek | N24: =0.5*N23 -> 9.424777961
A25: 4800 | B25: breedspoor | C25: 4014-12 | D25: 4001 | G25: 280 | H25: 7 | I25: 9 | L25: plooitoeslag | M25: =N24/M21 -> 1.570796327
A26: 4900 | B26: breedspoor | C26: 4014-12 | D26: 4001 | L26: in% | M26: =ROUND((M25)*100,0) -> 157
A27: 5100 | B27: breedspoor | C27: 4014-12 | D27: 4001
A28: 5300 | B28: breedspoor | C28: 4014-12 | D28: 4001
A29: 5600 | B29: breedspoor | C29: 4014-12 | D29: 4001
A30: 6200 | B30: breedspoor | C30: 4014-12 | D30: 4001

Sheet faltentiefe (hidden)
